[Event "Polofinale MCR junioru 2023"]
[Site "Czech Republic"]
[Date "2023.11.12"]
[Round "2.12"]
[White "Lihotsky, Lukas"]
[Black "Trojan, Matyas"]
[Result "1/2-1/2"]
[TimeControl "90 min per 40 moves + 15 min + 30 sec / move from move 1"]
[WhiteFideId "23727004"]
[BlackFideId "23710764"]
[WhiteElo "2100"]
[BlackElo "1957"]

1. d4 {[%clk 01:30:57]} {[%emt 00:00:03]} d5 {[%clk 01:30:53]} {[%emt
00:00:07]} 2. c4 {[%clk 01:31:23]} {[%emt 00:00:04]} c6 {[%clk 01:31:17]}
{[%emt 00:00:05]} 3. Nc3 {[%clk 01:31:45]} {[%emt 00:00:08]} Nf6 {[%clk
01:31:42]} {[%emt 00:00:05]} 4. Nf3 {[%clk 01:32:12]} {[%emt 00:00:04]} e6
{[%clk 01:32:05]} {[%emt 00:00:07]} 5. Bg5 {[%clk 01:31:55]} {[%emt 00:00:47]}
Be7 {[%clk 01:32:24]} {[%emt 00:00:11]} 6. e3 {[%clk 01:31:03]} {[%emt
00:01:22]} O-O {[%clk 01:31:48]} {[%emt 00:01:06]} 7. Rc1 {[%clk 01:30:25]}
{[%emt 00:01:07]} Nbd7 {[%clk 01:29:46]} {[%emt 00:02:33]} 8. Bd3 {[%clk
01:30:40]} {[%emt 00:00:15]} dxc4 {[%clk 01:21:55]} {[%emt 00:08:21]} 9. Bxc4
{[%clk 01:31:04]} {[%emt 00:00:06]} b5 {[%clk 01:22:02]} {[%emt 00:00:23]} 10.
Bd3 {[%clk 01:31:13]} {[%emt 00:00:21]} Bb7 {[%clk 01:21:52]} {[%emt 00:00:40]}
11. O-O {[%clk 01:30:01]} {[%emt 00:01:41]} Rc8 {[%clk 01:20:59]} {[%emt
00:01:24]} 12. Qe2 {[%clk 01:15:04]} {[%emt 00:15:27]} b4 {[%clk 01:14:27]}
{[%emt 00:07:02]} 13. Bxf6 {[%clk 01:12:04]} {[%emt 00:03:29]} Nxf6 {[%clk
01:07:12]} {[%emt 00:07:45]} 14. Ne4 {[%clk 01:12:09]} {[%emt 00:00:25]} Nxe4
{[%clk 01:04:45]} {[%emt 00:02:58]} 15. Bxe4 {[%clk 01:12:32]} {[%emt
00:00:07]} f5 {[%clk 01:03:49]} {[%emt 00:01:26]} 16. Bd3 {[%clk 01:07:57]}
{[%emt 00:05:05]} c5 {[%clk 01:01:51]} {[%emt 00:02:28]} 17. Ba6 {[%clk
01:05:34]} {[%emt 00:02:53]} Qb6 {[%clk 00:59:20]} {[%emt 00:03:01]} 18. Bxb7
{[%clk 01:05:58]} {[%emt 00:00:06]} Qxb7 {[%clk 00:59:40]} {[%emt 00:00:10]} 19.
Qc4 {[%clk 01:02:34]} {[%emt 00:03:54]} Rf6 {[%clk 00:57:53]} {[%emt 00:02:16]}
20. Rfd1 {[%clk 00:56:38]} {[%emt 00:06:26]} Bd6 {[%clk 00:56:04]} {[%emt
00:02:20]} 21. dxc5 {[%clk 00:38:11]} {[%emt 00:18:56]} Rxc5 {[%clk 00:54:29]}
{[%emt 00:02:06]} 22. Qd3 {[%emt 00:03:37]} Qe7 {[%clk 00:48:06]} {[%emt
00:04:41]} 23. Rxc5 {[%clk 00:27:08]} {[%emt 00:10:37]} Bxc5 {[%clk 00:48:29]}
{[%emt 00:00:07]} 24. Ne5 {[%clk 00:27:11]} {[%emt 00:00:28]} f4 {[%clk
00:39:27]} {[%emt 00:09:33]} 25. Nd7 {[%clk 00:12:51]} {[%emt 00:14:49]} Rf5
{[%clk 00:29:47]} {[%emt 00:10:10]} 26. Nxc5 {[%clk 00:12:49]} {[%emt
00:00:32]} Qxc5 {[%clk 00:29:04]} {[%emt 00:01:13]} 27. Qd8+ {[%clk 00:12:38]}
{[%emt 00:00:41]} Kf7 {[%clk 00:15:31]} {[%emt 00:14:04]} 28. Qd7+ {[%clk
00:08:58]} {[%emt 00:04:09]} Kf6 {[%clk 00:14:23]} {[%emt 00:01:38]} 29. Qd8+
{[%clk 00:05:55]} {[%emt 00:03:33]} Kg6 {[%clk 00:05:52]} {[%emt 00:09:01]} 30.
Qe8+ {[%clk 00:06:07]} {[%emt 00:00:17]} Kf6 {[%clk 00:06:04]} {[%emt
00:00:18]} 31. Qd8+ {[%clk 00:06:32]} {[%emt 00:00:05]} Kg6 {[%clk 00:06:22]}
{[%emt 00:00:12]} 32. exf4 {[%clk 00:05:19]} {[%emt 00:01:44]} Rxf4 {[%clk
00:05:30]} {[%emt 00:01:22]} 33. Qd3+ {[%clk 00:05:25]} {[%emt 00:00:23]} Kf7
{[%clk 00:05:16]} {[%emt 00:00:44]} 34. Qd7+ {[%clk 00:05:27]} {[%emt
00:00:28]} Kf6 {[%clk 00:04:38]} {[%emt 00:01:08]} 35. Qd8+ {[%clk 00:05:47]}
{[%emt 00:00:10]} Kg6 {[%clk 00:03:48]} {[%emt 00:01:21]} 36. Qd3+ {[%clk
00:05:48]} {[%emt 00:00:29]} Kf6 {[%clk 00:02:44]} {[%emt 00:01:33]} 37. Qd8+
{[%clk 00:05:45]} {[%emt 00:00:33]} Kg6 {[%clk 00:02:46]} {[%emt 00:00:28]} 38.
Qd2 {[%clk 00:05:16]} {[%emt 00:00:59]} Rf5 {[%clk 00:02:30]} {[%emt 00:00:46]}
39. Qe2 {[%clk 00:04:14]} {[%emt 00:01:31]} Kf6 {[%clk 00:01:36]} {[%emt
00:01:26]} 40. h3 {[%clk 00:00:39]} {[%emt 00:04:04]} Qe5 {[%clk 00:00:45]}
{[%emt 00:01:22]} 41. Qc2 {[%clk 00:11:34]} {[%emt 00:05:04]} Qc5 {[%clk
00:15:18]} {[%emt 00:01:28]} 42. Qe2 {[%clk 00:11:18]} {[%emt 00:00:46]} Qe5
{[%clk 00:14:50]} {[%emt 00:00:58]} 43. Qa6 {[%clk 00:08:26]} {[%emt 00:03:21]}
Qc5 {[%clk 00:11:19]} {[%emt 00:04:02]} 1/2-1/2

[Event "Polofinale MCR junioru 2023"]
[Site "Czech Republic"]
[Date "2023.11.12"]
[Round "2.13"]
[White "Lieber, Lukas"]
[Black "Davidek, Zdenek"]
[Result "0-1"]
[TimeControl "90 min per 40 moves + 15 min + 30 sec / move from move 1"]
[WhiteFideId "23700688"]
[BlackFideId "23725001"]
[WhiteElo "1959"]
[BlackElo "2099"]

1. e4 {[%clk 01:30:56]} {[%emt 00:00:02]} c5 {[%clk 01:30:24]} {[%emt
00:00:37]} 2. Nf3 {[%clk 01:31:07]} {[%emt 00:00:17]} Nc6 {[%clk 01:30:47]}
{[%emt 00:00:09]} 3. d4 {[%clk 01:31:13]} {[%emt 00:00:25]} cxd4 {[%clk
01:31:07]} {[%emt 00:00:10]} 4. Nxd4 {[%clk 01:31:38]} {[%emt 00:00:03]} Nf6
{[%clk 01:31:20]} {[%emt 00:00:18]} 5. Nc3 {[%clk 01:31:55]} {[%emt 00:00:13]}
e5 {[%clk 01:31:09]} {[%emt 00:00:42]} 6. Ndb5 {[%clk 01:32:14]} {[%emt
00:00:10]} d6 {[%clk 01:31:34]} {[%emt 00:00:06]} 7. Bg5 {[%clk 01:31:51]}
{[%emt 00:00:50]} a6 {[%clk 01:31:59]} {[%emt 00:00:07]} 8. Na3 {[%clk
01:32:18]} {[%emt 00:00:03]} b5 {[%clk 01:32:24]} {[%emt 00:00:05]} 9. Bxf6
{[%clk 01:31:30]} {[%emt 00:01:16]} gxf6 {[%clk 01:32:30]} {[%emt 00:00:27]} 10.
Nd5 {[%clk 01:31:57]} {[%emt 00:00:02]} f5 {[%clk 01:32:38]} {[%emt 00:00:23]}
11. Bxb5 {[%clk 01:31:16]} {[%emt 00:01:09]} axb5 {[%clk 01:32:24]} {[%emt
00:00:45]} 12. Nxb5 {[%clk 01:31:09]} {[%emt 00:00:37]} Ra4 {[%clk 01:24:38]}
{[%emt 00:08:17]} 13. Nbc7+ {[%clk 01:31:35]} {[%emt 00:00:03]} Kd7 {[%clk
01:25:05]} {[%emt 00:00:04]} 14. O-O {[%clk 01:30:31]} {[%emt 00:01:32]} Rxe4
{[%clk 01:15:24]} {[%emt 00:10:12]} 15. Qh5 {[%clk 01:30:04]} {[%emt 00:00:56]}
Ne7 {[%clk 01:04:47]} {[%emt 00:11:08]} 16. Qxf7 {[%clk 01:29:38]} {[%emt
00:00:55]} Kc6 {[%clk 01:01:00]} {[%emt 00:04:19]} 17. c4 {[%clk 01:28:05]}
{[%emt 00:02:01]} Rg8 {[%clk 00:33:30]} {[%emt 00:28:02]} 18. Nf6 {[%clk
01:24:56]} {[%emt 00:03:36]} Rg7 {[%clk 00:28:56]} {[%emt 00:05:07]} 19. Ne6
{[%clk 01:23:52]} {[%emt 00:01:32]} Bxe6 {[%clk 00:24:47]} {[%emt 00:04:41]} 20.
Qxe6 {[%clk 01:24:17]} {[%emt 00:00:03]} Rd4 {[%clk 00:23:08]} {[%emt
00:02:10]} 21. c5 {[%clk 01:18:06]} {[%emt 00:06:40]} Qc8 {[%clk 00:19:59]}
{[%emt 00:03:41]} 22. Qb3 {[%clk 01:17:51]} {[%emt 00:00:45]} Qb7 {[%clk
00:20:23]} {[%emt 00:00:06]} 23. Qf3+ {[%clk 01:16:57]} {[%emt 00:01:22]} e4
{[%clk 00:19:48]} {[%emt 00:01:06]} 24. Qf4 {[%clk 01:15:23]} {[%emt 00:02:03]}
Nd5 {[%clk 00:18:20]} {[%emt 00:02:00]} 25. Nxd5 {[%clk 01:09:46]} {[%emt
00:06:06]} Rxd5 {[%clk 00:18:49]} {[%emt 00:00:02]} 26. Rfd1 {[%clk 01:10:08]}
{[%emt 00:00:06]} Qxb2 {[%clk 00:17:23]} {[%emt 00:01:58]} 27. Rdb1 {[%clk
01:08:53]} {[%emt 00:01:44]} Qd4 {[%clk 00:14:02]} {[%emt 00:03:52]} 28. Qh4
{[%clk 01:06:29]} {[%emt 00:02:51]} Be7 {[%clk 00:13:07]} {[%emt 00:01:27]} 29.
Qh5 {[%clk 01:05:44]} {[%emt 00:01:14]} Rg6 {[%clk 00:13:18]} {[%emt 00:00:20]}
30. Qxh7 {[%clk 01:01:58]} {[%emt 00:04:15]} Qg7 {[%clk 00:11:47]} {[%emt
00:02:03]} 31. Qh3 {[%clk 01:02:24]} {[%emt 00:00:03]} Rxc5 {[%clk 00:08:49]}
{[%emt 00:03:28]} 32. Qb3 {[%clk 01:00:19]} {[%emt 00:02:34]} Kd7 {[%clk
00:05:46]} {[%emt 00:03:34]} 33. g3 {[%clk 00:58:28]} {[%emt 00:02:20]} Qg8
{[%clk 00:04:03]} {[%emt 00:02:15]} 34. Qa4+ {[%clk 00:58:08]} {[%emt
00:00:50]} Ke6 {[%clk 00:04:06]} {[%emt 00:00:27]} 35. Rb7 {[%clk 00:57:45]}
{[%emt 00:00:53]} Qc8 {[%clk 00:04:34]} {[%emt 00:00:02]} 36. Qb3+ {[%clk
00:56:47]} {[%emt 00:01:28]} d5 {[%clk 00:02:54]} {[%emt 00:02:10]} 37. Rd1
{[%clk 00:54:34]} {[%emt 00:02:41]} Bd6 {[%clk 00:02:21]} {[%emt 00:01:05]} 38.
Rh7 {[%clk 00:53:13]} {[%emt 00:01:49]} Rf6 {[%clk 00:01:42]} {[%emt 00:01:11]}
39. Kg2 {[%clk 00:52:28]} {[%emt 00:01:13]} Qc6 {[%clk 00:01:05]} {[%emt
00:01:08]} 40. Qa3 {[%clk 00:48:04]} {[%emt 00:04:53]} Qc8 {[%clk 00:01:02]}
{[%emt 00:00:34]} 41. Rb1 {[%clk 00:45:48]} {[%emt 00:02:46]} f4 {[%clk
00:00:37]} {[%emt 00:00:56]} 42. Qb3 {[%clk 00:42:58]} {[%emt 00:03:20]} f3+
{[%clk 00:12:31]} {[%emt 00:04:07]} 43. Kh3 {[%clk 00:56:10]} {[%emt 00:03:17]}
Rg6 {[%clk 00:07:54]} {[%emt 00:05:08]} 44. g4 {[%clk 00:54:38]} {[%emt
00:02:01]} Qg8 {[%clk 00:07:33]} {[%emt 00:00:52]} 45. Qb7 {[%clk 00:53:37]}
{[%emt 00:01:31]} Rc7 {[%emt 00:00:24]} 46. Qxc7 {[%clk 00:49:00]} {[%emt
00:05:05]} Bxc7 {[%clk 00:08:06]} {[%emt 00:00:04]} 47. Rxc7 {[%clk 00:48:44]}
{[%emt 00:00:46]} Qh8+ {[%clk 00:07:46]} {[%emt 00:00:51]} 48. Kg3 {[%clk
00:48:56]} {[%emt 00:00:17]} Qe5+ {[%clk 00:08:10]} {[%emt 00:00:05]} 49. Kh3
{[%clk 00:49:09]} {[%emt 00:00:18]} Rh6# {[%clk 00:08:35]} {[%emt 00:00:06]}
0-1

[Event "Polofinale MCR junioru 2023"]
[Site "Czech Republic"]
[Date "2023.11.12"]
[Round "2.14"]
[White "Siles, Jan"]
[Black "Lang, Simon"]
[Result "0-1"]
[TimeControl "90 min per 40 moves + 15 min + 30 sec / move from move 1"]
[WhiteFideId "23715405"]
[BlackFideId "23712449"]
[WhiteElo "1829"]
[BlackElo "2090"]

1. d4 {[%clk 01:30:57]} {[%emt 00:00:03]} Nf6 {[%clk 01:30:13]} {[%emt
00:00:47]} 2. Nf3 {[%clk 01:31:04]} {[%emt 00:00:24]} e6 {[%clk 01:29:05]}
{[%emt 00:01:37]} 3. Bg5 {[%clk 01:30:55]} {[%emt 00:00:39]} Be7 {[%clk
01:29:20]} {[%emt 00:00:15]} 4. Nc3 {[%clk 01:30:00]} {[%emt 00:01:25]} d5
{[%clk 01:27:03]} {[%emt 00:02:47]} 5. Bxf6 {[%clk 01:30:23]} {[%emt 00:00:08]}
Bxf6 {[%clk 01:27:20]} {[%emt 00:00:13]} 6. e4 {[%clk 01:30:40]} {[%emt
00:00:13]} Nc6 {[%clk 01:14:47]} {[%emt 00:13:02]} 7. Bb5 {[%clk 01:22:14]}
{[%emt 00:08:57]} O-O {[%clk 01:12:46]} {[%emt 00:02:30]} 8. exd5 {[%clk
01:20:12]} {[%emt 00:02:33]} exd5 {[%clk 01:13:08]} {[%emt 00:00:08]} 9. Bxc6
{[%clk 01:20:07]} {[%emt 00:00:34]} bxc6 {[%clk 01:13:15]} {[%emt 00:00:23]} 10.
O-O {[%clk 01:18:14]} {[%emt 00:02:22]} Rb8 {[%clk 01:12:49]} {[%emt 00:00:57]}
11. Na4 {[%clk 01:16:57]} {[%emt 00:01:49]} Bg4 {[%clk 01:10:53]} {[%emt
00:02:24]} 12. c3 {[%clk 01:14:55]} {[%emt 00:02:32]} Be7 {[%clk 01:08:50]}
{[%emt 00:02:33]} 13. b4 {[%clk 01:11:07]} {[%emt 00:04:18]} Bd6 {[%clk
01:08:02]} {[%emt 00:01:18]} 14. Nc5 {[%clk 01:05:57]} {[%emt 00:05:40]} Qf6
{[%clk 01:05:43]} {[%emt 00:02:49]} 15. h3 {[%clk 01:00:10]} {[%emt 00:06:17]}
Bh5 {[%clk 01:02:31]} {[%emt 00:03:42]} 16. Nd3 {[%clk 00:54:07]} {[%emt
00:06:34]} Rbe8 {[%clk 00:59:01]} {[%emt 00:04:00]} 17. Re1 {[%clk 00:52:16]}
{[%emt 00:02:21]} Re4 {[%clk 00:57:00]} {[%emt 00:02:31]} 18. Re3 {[%clk
00:50:20]} {[%emt 00:02:25]} Rfe8 {[%clk 00:56:34]} {[%emt 00:00:56]} 19. Qd2
{[%clk 00:49:58]} {[%emt 00:00:53]} Qh6 {[%clk 00:38:23]} {[%emt 00:18:40]} 20.
Ree1 {[%clk 00:43:21]} {[%emt 00:07:07]} Qf6 {[%clk 00:32:17]} {[%emt
00:06:36]} 21. Re3 {[%clk 00:42:59]} {[%emt 00:00:52]} Qf5 {[%clk 00:30:45]}
{[%emt 00:02:02]} 22. Nfe5 {[%clk 00:38:12]} {[%emt 00:05:17]} f6 {[%clk
00:28:17]} {[%emt 00:02:58]} 23. Rxe4 {[%clk 00:26:36]} {[%emt 00:12:06]} dxe4
{[%clk 00:26:37]} {[%emt 00:02:11]} 24. g4 {[%clk 00:25:57]} {[%emt 00:01:09]}
Bxg4 {[%clk 00:23:46]} {[%emt 00:03:22]} 25. hxg4 {[%clk 00:11:01]} {[%emt
00:15:26]} Qc8 {[%clk 00:24:07]} {[%emt 00:00:08]} 26. f3 {[%clk 00:10:26]}
{[%emt 00:01:05]} fxe5 {[%clk 00:22:53]} {[%emt 00:01:45]} 27. dxe5 {[%clk
00:10:19]} {[%emt 00:00:37]} Bxe5 {[%clk 00:15:12]} {[%emt 00:08:10]} 28. Nxe5
{[%clk 00:10:19]} {[%emt 00:00:30]} Rxe5 {[%clk 00:15:37]} {[%emt 00:00:05]} 29.
Re1 {[%clk 00:09:02]} {[%emt 00:01:47]} Rd5 {[%clk 00:10:27]} {[%emt 00:05:40]}
30. Qf4 {[%clk 00:06:13]} {[%emt 00:03:20]} exf3 {[%clk 00:08:53]} {[%emt
00:02:04]} 31. Re7 {[%clk 00:06:32]} {[%emt 00:00:11]} Qf8 {[%clk 00:08:58]}
{[%emt 00:00:23]} 32. Qxf8+ {[%clk 00:06:36]} {[%emt 00:00:27]} Kxf8 {[%clk
00:09:24]} {[%emt 00:00:05]} 33. Rxc7 {[%clk 00:06:29]} {[%emt 00:00:37]} Rd2
{[%clk 00:09:28]} {[%emt 00:00:25]} 34. Rxa7 {[%clk 00:05:45]} {[%emt
00:01:15]} Rc2 {[%clk 00:07:59]} {[%emt 00:01:58]} 35. a4 {[%clk 00:04:47]}
{[%emt 00:01:28]} Rxc3 {[%clk 00:08:19]} {[%emt 00:00:11]} 36. Kf2 {[%clk
00:03:10]} {[%emt 00:02:06]} Rc4 {[%clk 00:03:45]} {[%emt 00:05:04]} 37. b5
{[%clk 00:02:45]} {[%emt 00:00:55]} cxb5 {[%clk 00:03:44]} {[%emt 00:00:31]} 38.
axb5 {[%clk 00:03:06]} {[%emt 00:00:10]} Rb4 {[%clk 00:02:08]} {[%emt
00:02:05]} 39. Kxf3 {[%clk 00:02:17]} {[%emt 00:01:20]} Rxb5 {[%clk 00:02:32]}
{[%emt 00:00:06]} 40. Kf4 {[%clk 00:01:21]} {[%emt 00:01:25]} h6 {[%clk
00:02:15]} {[%emt 00:00:47]} 41. Rc7 {[%clk 00:15:03]} {[%emt 00:02:18]} Kg8
{[%clk 00:18:08]} {[%emt 00:00:07]} 42. Ra7 {[%clk 00:14:05]} {[%emt 00:01:29]}
Kh7 {[%clk 00:18:32]} {[%emt 00:00:06]} 43. Ra6 {[%clk 00:14:21]} {[%emt
00:00:14]} Rb4+ {[%clk 00:18:50]} {[%emt 00:00:12]} 44. Kf3 {[%clk 00:12:21]}
{[%emt 00:02:31]} Rb3+ {[%clk 00:19:14]} {[%emt 00:00:05]} 45. Ke4 {[%clk
00:10:47]} {[%emt 00:02:03]} Rh3 {[%clk 00:19:02]} {[%emt 00:00:42]} 46. Ra7
{[%clk 00:07:22]} {[%emt 00:03:57]} Rh1 {[%clk 00:19:08]} {[%emt 00:00:22]} 47.
Kf4 {[%clk 00:07:36]} {[%emt 00:00:17]} Rf1+ {[%clk 00:19:27]} {[%emt
00:00:11]} 48. Kg3 {[%clk 00:07:49]} {[%emt 00:00:16]} Rf6 {[%clk 00:19:52]}
{[%emt 00:00:05]} 49. Ra5 {[%clk 00:07:34]} {[%emt 00:00:46]} Kg6 {[%clk
00:20:17]} {[%emt 00:00:05]} 50. Rb5 {[%clk 00:07:28]} {[%emt 00:00:36]} Re6
{[%clk 00:20:38]} {[%emt 00:00:08]} 51. Rb3 {[%clk 00:07:08]} {[%emt 00:00:51]}
Re5 {[%clk 00:20:47]} {[%emt 00:00:21]} 52. Rb6+ {[%clk 00:07:21]} {[%emt
00:00:17]} Kg5 {[%clk 00:20:51]} {[%emt 00:00:25]} 53. Rb3 {[%clk 00:07:43]}
{[%emt 00:00:08]} Rc5 {[%clk 00:21:05]} {[%emt 00:00:17]} 54. Ra3 {[%clk
00:08:03]} {[%emt 00:00:10]} Kf6 {[%clk 00:20:48]} {[%emt 00:00:46]} 55. Re3
{[%clk 00:07:46]} {[%emt 00:00:47]} Re5 {[%clk 00:20:56]} {[%emt 00:00:22]} 56.
Ra3 {[%clk 00:08:07]} {[%emt 00:00:10]} Rd5 {[%clk 00:21:12]} {[%emt 00:00:14]}
57. Re3 {[%clk 00:08:22]} {[%emt 00:00:15]} Rd4 {[%clk 00:21:35]} {[%emt
00:00:06]} 58. Rf3+ {[%clk 00:07:29]} {[%emt 00:01:23]} Kg6 {[%clk 00:21:26]}
{[%emt 00:00:39]} 59. Ra3 {[%clk 00:07:34]} {[%emt 00:00:25]} Rd5 {[%clk
00:21:51]} {[%emt 00:00:06]} 60. Ra6+ {[%clk 00:07:33]} {[%emt 00:00:30]} Kg5
{[%clk 00:22:16]} {[%emt 00:00:05]} 61. Ra3 {[%clk 00:07:58]} {[%emt 00:00:07]}
Rb5 {[%clk 00:22:14]} {[%emt 00:00:31]} 62. Rc3 {[%clk 00:08:04]} {[%emt
00:00:24]} Kf6 {[%clk 00:22:38]} {[%emt 00:00:05]} 63. Re3 {[%clk 00:08:14]}
{[%emt 00:00:21]} Re5 {[%clk 00:23:00]} {[%emt 00:00:07]} 64. Ra3 {[%clk
00:08:30]} {[%emt 00:00:15]} Re6 {[%clk 00:22:38]} {[%emt 00:00:51]} 65. Rb3
{[%clk 00:08:31]} {[%emt 00:00:29]} Ke5 {[%clk 00:22:12]} {[%emt 00:00:55]} 66.
Rb7 {[%clk 00:07:33]} {[%emt 00:01:29]} g5 {[%clk 00:22:08]} {[%emt 00:00:33]}
67. Rb4 {[%clk 00:07:19]} {[%emt 00:00:45]} Rd6 {[%clk 00:22:30]} {[%emt
00:00:06]} 68. Ra4 {[%clk 00:05:32]} {[%emt 00:02:20]} Rd3+ {[%clk 00:22:54]}
{[%emt 00:00:07]} 69. Kg2 {[%clk 00:05:48]} {[%emt 00:00:12]} Rd4 {[%clk
00:23:13]} {[%emt 00:00:10]} 70. Ra5+ {[%clk 00:05:47]} {[%emt 00:00:33]} Kf4
{[%clk 00:23:32]} {[%emt 00:00:11]} 71. Ra6 {[%clk 00:05:44]} {[%emt 00:00:33]}
Kxg4 {[%clk 00:21:56]} {[%emt 00:02:05]} 72. Rxh6 {[%clk 00:06:06]} {[%emt
00:00:08]} Rd2+ {[%clk 00:22:24]} {[%emt 00:00:02]} 73. Kf1 {[%clk 00:05:48]}
{[%emt 00:00:49]} Kg3 {[%clk 00:22:32]} {[%emt 00:00:22]} 74. Ra6 {[%clk
00:05:06]} {[%emt 00:01:11]} Rd1+ {[%clk 00:22:54]} {[%emt 00:00:08]} 75. Ke2
{[%clk 00:05:30]} {[%emt 00:00:07]} Rb1 {[%clk 00:22:59]} {[%emt 00:00:24]} 76.
Ra3+ {[%clk 00:05:38]} {[%emt 00:00:23]} Kg2 {[%clk 00:22:59]} {[%emt
00:00:29]} 77. Ra4 {[%clk 00:05:43]} {[%emt 00:00:26]} Rb5 {[%clk 00:22:31]}
{[%emt 00:00:57]} 78. Re4 {[%clk 00:03:41]} {[%emt 00:02:33]} Rf5 {[%clk
00:22:35]} {[%emt 00:00:26]} 79. Ke1 {[%clk 00:03:04]} {[%emt 00:01:06]} Rf4
{[%clk 00:22:42]} {[%emt 00:00:23]} 80. Re2+ {[%clk 00:02:52]} {[%emt
00:00:42]} Kg1 {[%clk 00:22:53]} {[%emt 00:00:18]} 81. Re3 {[%clk 00:02:30]}
{[%emt 00:00:54]} g4 {[%clk 00:23:02]} {[%emt 00:00:20]} 82. Ke2 {[%clk
00:02:07]} {[%emt 00:00:54]} Kg2 {[%clk 00:23:19]} {[%emt 00:00:12]} 83. Re8
{[%clk 00:01:45]} {[%emt 00:00:22]} g3 {[%clk 00:23:34]} {[%emt 00:00:16]} 84.
Ke1 {[%clk 00:02:21]} {[%emt 00:00:24]} Kg1 {[%clk 00:23:55]} {[%emt 00:00:08]}
85. Re7 {[%clk 00:02:21]} {[%emt 00:00:30]} g2 {[%clk 00:24:20]} {[%emt
00:00:05]} 86. Re8 {[%clk 00:02:28]} {[%emt 00:00:23]} Rh4 {[%clk 00:24:41]}
{[%emt 00:00:09]} 0-1

[Event "Polofinale MCR junioru 2023"]
[Site "Czech Republic"]
[Date "2023.11.12"]
[Round "2.15"]
[White "Mach, Petr"]
[Black "Sprinar, Michal"]
[Result "1-0"]
[TimeControl "90 min per 40 moves + 15 min + 30 sec / move from move 1"]
[WhiteFideId "383546"]
[BlackFideId "23714190"]
[WhiteElo "2084"]
[BlackElo "1742"]

1. Nf3 {[%clk 01:30:59]} {[%emt 00:03:29]} c5 {[%clk 01:30:54]} {[%emt
00:00:06]} 2. g3 {[%clk 01:31:26]} {[%emt 00:00:03]} Nc6 {[%clk 01:31:21]}
{[%emt 00:00:03]} 3. d4 {[%clk 01:31:54]} {[%emt 00:00:02]} cxd4 {[%clk
01:31:48]} {[%emt 00:00:04]} 4. Nxd4 {[%clk 01:32:20]} {[%emt 00:00:04]} g6
{[%emt 00:00:06]} 5. Bg2 {[%clk 01:32:45]} {[%emt 00:00:03]} Bg7 {[%clk
01:32:39]} {[%emt 00:00:05]} 6. Nxc6 {[%clk 01:33:03]} {[%emt 00:00:12]} bxc6
{[%clk 01:32:39]} {[%emt 00:00:29]} 7. c4 {[%clk 01:33:18]} {[%emt 00:00:15]}
Nf6 {[%clk 01:32:39]} {[%emt 00:00:30]} 8. Nc3 {[%clk 01:33:28]} {[%emt
00:00:20]} O-O {[%clk 01:33:02]} {[%emt 00:00:07]} 9. O-O {[%clk 01:33:13]}
{[%emt 00:00:45]} a5 {[%clk 01:29:11]} {[%emt 00:04:21]} 10. b3 {[%clk
01:28:30]} {[%emt 00:05:14]} Bb7 {[%clk 01:20:50]} {[%emt 00:08:50]} 11. Bb2
{[%clk 01:28:05]} {[%emt 00:00:55]} Qc7 {[%clk 01:17:37]} {[%emt 00:03:39]} 12.
c5 {[%clk 01:25:25]} {[%emt 00:03:15]} d5 {[%clk 01:10:53]} {[%emt 00:07:11]}
13. cxd6 {[%clk 01:16:55]} {[%emt 00:09:02]} exd6 {[%clk 01:11:15]} {[%emt
00:00:08]} 14. Rc1 {[%clk 01:17:20]} {[%emt 00:00:05]} Rad8 {[%clk 01:06:46]}
{[%emt 00:04:59]} 15. Rc2 {[%emt 00:31:44]} Ba6 {[%clk 00:47:47]} {[%emt
00:09:15]} 16. Qa1 {[%clk 00:52:14]} {[%emt 00:04:37]} Ne8 {[%clk 00:37:24]}
{[%emt 00:10:51]} 17. Nd5 {[%clk 00:48:04]} {[%emt 00:04:41]} Bxb2 {[%clk
00:33:44]} {[%emt 00:04:09]} 18. Qxb2 {[%clk 00:45:32]} {[%emt 00:03:03]} Qd7
{[%clk 00:28:31]} {[%emt 00:05:34]} 19. Rxc6 {[%clk 00:45:02]} {[%emt
00:01:09]} Bb5 {[%clk 00:27:48]} {[%emt 00:01:13]} 20. Rc7 {[%clk 00:44:20]}
{[%emt 00:01:12]} Qe6 {[%clk 00:27:53]} {[%emt 00:00:22]} 21. Ne7+ {[%clk
00:44:43]} {[%emt 00:00:10]} 1-0